[Event "NJSK 2018 Jeugd B"]
[Site "Assen, Netherlands"]
[Date "2018.05.04"]
[Round "6.5"]
[White "Emans, Job"]
[Black "Achuthan, Dylan"]
[Result "1-0"]
[TimeControl "40/90m+30m+30sec/move"]
[WhiteElo "1803"]
[BlackElo "1673"]

1. d4 {[%clk 01:30:56]} {[%emt 00:00:05]} Nf6 {[%clk 01:30:53]} {[%emt
00:00:07]} 2. c4 {[%clk 01:31:17]} {[%emt 00:00:09]} g6 {[%clk 01:31:16]}
{[%emt 00:00:07]} 3. Nc3 {[%clk 01:31:39]} {[%emt 00:00:08]} d5 {[%clk
01:31:38]} {[%emt 00:00:08]} 4. Nf3 {[%clk 01:31:05]} {[%emt 00:01:04]} Bg7
{[%clk 01:31:48]} {[%emt 00:00:19]} 5. e3 {[%clk 01:29:39]} {[%emt 00:01:57]}
O-O {[%clk 01:31:33]} {[%emt 00:00:45]} 6. Be2 {[%clk 01:29:46]} {[%emt
00:00:23]} e6 {[%clk 01:31:28]} {[%emt 00:00:35]} 7. O-O {[%clk 01:29:21]}
{[%emt 00:00:55]} c5 {[%clk 01:30:59]} {[%emt 00:01:00]} 8. b3 {[%clk
01:18:43]} {[%emt 00:11:07]} Nc6 {[%clk 01:27:15]} {[%emt 00:04:14]} 9. Bb2
{[%clk 01:10:20]} {[%emt 00:08:53]} Ne4 {[%clk 01:22:01]} {[%emt 00:05:44]} 10.
cxd5 {[%clk 01:01:45]} {[%emt 00:09:04]} exd5 {[%clk 01:20:00]} {[%emt
00:02:31]} 11. Na4 {[%clk 01:01:41]} {[%emt 00:00:35]} cxd4 {[%clk 01:10:08]}
{[%emt 00:10:22]} 12. Nxd4 {[%clk 00:59:52]} {[%emt 00:02:18]} Nxd4 {[%clk
00:56:37]} {[%emt 00:14:02]} 13. Bxd4 {[%clk 01:00:15]} {[%emt 00:00:06]} Bh6
{[%clk 00:54:57]} {[%emt 00:02:10]} 14. Qc2 {[%clk 00:56:02]} {[%emt 00:04:43]}
f5 {[%clk 00:46:43]} {[%emt 00:08:44]} 15. Nc3 {[%clk 00:51:30]} {[%emt
00:05:03]} Bg7 {[%clk 00:41:59]} {[%emt 00:05:13]} 16. Bxg7 {[%clk 00:43:41]}
{[%emt 00:08:19]} Kxg7 {[%clk 00:42:14]} {[%emt 00:00:16]} 17. Rfd1 {[%clk
00:43:03]} {[%emt 00:01:07]} Be6 {[%clk 00:31:56]} {[%emt 00:10:48]} 18. Nb5
{[%clk 00:38:31]} {[%emt 00:05:03]} Rc8 {[%clk 00:27:34]} {[%emt 00:04:52]} 19.
Qb2+ {[%clk 00:37:43]} {[%emt 00:01:17]} Kg8 {[%clk 00:26:59]} {[%emt
00:01:05]} 20. Rac1 {[%emt 00:11:14]} a6 {[%clk 00:20:46]} 21. Nd4 {[%clk
00:33:43]} {[%emt 00:00:29]} Rxc1 {[%clk 00:18:19]} {[%emt 00:02:56]} 22. Rxc1
{[%clk 00:28:21]} {[%emt 00:05:53]} Bf7 {[%clk 00:16:02]} {[%emt 00:02:47]} 23.
Qc2 {[%clk 00:19:25]} {[%emt 00:09:26]} Qf6 {[%clk 00:13:09]} {[%emt 00:03:23]}
24. Qc7 {[%clk 00:16:58]} {[%emt 00:02:57]} Re8 {[%clk 00:10:19]} {[%emt
00:03:20]} 25. Qxb7 {[%clk 00:08:53]} {[%emt 00:08:36]} f4 {[%clk 00:07:35]}
{[%emt 00:03:14]} 26. Qxa6 {[%clk 00:09:06]} {[%emt 00:00:16]} Qe7 {[%clk
00:07:09]} {[%emt 00:00:57]} 27. Qd3 {[%clk 00:07:19]} {[%emt 00:02:16]} Nc5
{[%clk 00:05:05]} {[%emt 00:02:34]} 28. Qc2 {[%clk 00:06:51]} {[%emt 00:00:58]}
Ne6 {[%clk 00:00:59]} {[%emt 00:04:37]} 29. Nc6 {[%clk 00:07:08]} {[%emt
00:00:12]} Qg5 {[%clk 00:00:54]} {[%emt 00:00:36]} 30. exf4 {[%clk 00:02:58]}
{[%emt 00:04:40]} Nxf4 {[%clk 00:00:53]} {[%emt 00:00:31]} 31. Bf3 {[%clk
00:03:18]} {[%emt 00:00:09]} Ne2+ {[%clk 00:00:53]} {[%emt 00:00:30]} 32. Bxe2
{[%clk 00:02:34]} {[%emt 00:01:14]} Rxe2 {[%clk 00:01:22]} 33. Qc5 {[%clk
00:02:14]} {[%emt 00:00:49]} Qd2 {[%clk 00:00:55]} {[%emt 00:00:58]} 34. h3
{[%clk 00:00:55]} {[%emt 00:01:49]} Qf4 {[%clk 00:00:50]} {[%emt 00:00:35]} 35.
Rd1 {[%clk 00:00:59]} {[%emt 00:00:26]} Be6 {[%clk 00:00:52]} {[%emt 00:00:28]}
36. Qd4 {[%clk 00:00:46]} {[%emt 00:00:43]} Qg5 {[%emt 00:01:13]} 37. a4 {[%clk
00:00:34]} Bxh3 {[%clk 00:00:52]} {[%emt 00:00:29]} 38. Qxd5+ {[%clk 00:00:58]}
{[%emt 00:00:07]} Qxd5 {[%clk 00:01:03]} {[%emt 00:00:18]} 39. Rxd5 {[%clk
00:01:27]} Be6 {[%clk 00:00:54]} {[%emt 00:00:39]} 40. Rb5 {[%clk 00:00:56]}
{[%emt 00:01:08]} Bd7 {[%clk 00:00:49]} {[%emt 00:00:29]} 41. Rb8+ {[%clk
00:01:20]} {[%emt 00:00:05]} Kf7 {[%clk 00:00:52]} {[%emt 00:00:27]} 42. Nd4
{[%clk 00:30:15]} {[%emt 00:01:34]} Re1+ {[%clk 00:30:40]} {[%emt 00:00:44]} 43.
Kh2 {[%clk 00:30:41]} {[%emt 00:00:03]} Rb1 {[%clk 00:30:53]} {[%emt 00:00:17]}
44. a5 {[%clk 00:30:38]} {[%emt 00:00:33]} Ke7 {[%clk 00:28:29]} {[%emt
00:02:54]} 45. Rb6 {[%clk 00:26:24]} {[%emt 00:04:44]} Kd8 {[%clk 00:27:26]}
{[%emt 00:01:32]} 46. b4 {[%clk 00:26:06]} {[%emt 00:00:49]} Kc7 {[%clk
00:26:06]} {[%emt 00:01:50]} 47. Nb5+ {[%clk 00:25:50]} {[%emt 00:00:47]} Kc8
{[%clk 00:25:57]} {[%emt 00:00:38]} 48. Nc3 {[%clk 00:25:50]} {[%emt 00:00:29]}
Rc1 {[%clk 00:25:58]} {[%emt 00:00:29]} 49. Ne4 {[%clk 00:25:54]} {[%emt
00:00:26]} Rc2 {[%clk 00:25:50]} {[%emt 00:00:39]} 50. Kg3 {[%clk 00:25:38]}
{[%emt 00:00:45]} Rb2 {[%clk 00:25:34]} {[%emt 00:00:47]} 51. Nf6 {[%clk
00:25:13]} {[%emt 00:00:55]} h5 {[%clk 00:23:49]} {[%emt 00:02:15]} 52. Nxd7
{[%clk 00:24:55]} {[%emt 00:00:48]} Kxd7 {[%clk 00:24:11]} {[%emt 00:00:08]} 53.
a6 {[%clk 00:24:02]} {[%emt 00:01:23]} Ra2 {[%clk 00:24:05]} {[%emt 00:00:36]}
54. Rxg6 {[%clk 00:23:43]} {[%emt 00:00:17]} 1-0

[Event "NJSK 2018 Jeugd B"]
[Site "Assen, Netherlands"]
[Date "2018.05.04"]
[Round "6.6"]
[White "Gevorkjan, Lewon"]
[Black "Wedda, Dries"]
[Result "0-1"]
[TimeControl "40/90m+30m+30sec/move"]
[WhiteElo "1821"]
[BlackElo "2096"]

1. Nf3 {[%clk 01:30:49]} {[%emt 00:00:10]} c5 {[%clk 01:30:54]} {[%emt
00:00:07]} 2. c4 {[%clk 01:31:14]} {[%emt 00:00:05]} Nc6 {[%clk 01:30:54]}
{[%emt 00:00:30]} 3. e3 {[%clk 01:31:22]} {[%emt 00:00:23]} Nf6 {[%clk
01:27:57]} {[%emt 00:03:26]} 4. Nc3 {[%clk 01:31:06]} {[%emt 00:00:46]} g6
{[%clk 01:28:04]} {[%emt 00:00:23]} 5. d4 {[%clk 01:31:15]} {[%emt 00:00:21]}
cxd4 {[%clk 01:28:03]} {[%emt 00:00:31]} 6. exd4 {[%clk 01:31:43]} {[%emt
00:00:02]} d5 {[%clk 01:28:20]} {[%emt 00:00:13]} 7. c5 {[%clk 01:30:10]}
{[%emt 00:02:03]} Bg7 {[%clk 01:20:10]} {[%emt 00:08:40]} 8. Bb5 {[%clk
01:23:23]} {[%emt 00:07:17]} O-O {[%clk 01:15:55]} {[%emt 00:04:44]} 9. O-O
{[%clk 01:20:57]} {[%emt 00:02:57]} Bg4 {[%clk 01:11:27]} {[%emt 00:04:58]} 10.
Be2 {[%clk 01:12:09]} {[%emt 00:09:18]} b6 {[%clk 01:08:41]} {[%emt 00:03:17]}
11. cxb6 {[%clk 01:08:52]} {[%emt 00:03:47]} Qxb6 {[%clk 01:04:13]} {[%emt
00:04:57]} 12. Na4 {[%clk 01:07:12]} {[%emt 00:02:10]} Qc7 {[%clk 01:03:11]}
{[%emt 00:01:32]} 13. Be3 {[%clk 01:06:58]} {[%emt 00:00:43]} Nd7 {[%clk
00:52:22]} {[%emt 00:11:21]} 14. Rc1 {[%clk 01:05:24]} {[%emt 00:02:03]} Bxf3
{[%clk 00:50:58]} {[%emt 00:01:53]} 15. Bxf3 {[%clk 01:05:41]} {[%emt
00:00:13]} e6 {[%clk 00:51:20]} {[%emt 00:00:09]} 16. Qd2 {[%clk 00:58:31]}
{[%emt 00:07:40]} Rac8 {[%clk 00:49:25]} {[%emt 00:02:25]} 17. Nc5 {[%clk
00:56:34]} {[%emt 00:02:28]} Nxc5 {[%clk 00:48:16]} {[%emt 00:01:38]} 18. Rxc5
{[%clk 00:57:02]} {[%emt 00:00:02]} Qb7 {[%clk 00:45:41]} {[%emt 00:03:05]} 19.
Rfc1 {[%clk 00:56:23]} {[%emt 00:01:09]} Ne7 {[%clk 00:44:41]} {[%emt
00:01:30]} 20. Bg4 {[%clk 00:51:33]} {[%emt 00:05:20]} h5 {[%clk 00:43:16]}
{[%emt 00:01:55]} 21. Bh3 {[%clk 00:51:14]} {[%emt 00:00:49]} Rxc5 {[%clk
00:39:54]} {[%emt 00:03:52]} 22. Rxc5 {[%clk 00:49:23]} {[%emt 00:02:21]} Rc8
{[%clk 00:39:17]} {[%emt 00:01:08]} 23. Rxc8+ {[%clk 00:47:59]} {[%emt
00:01:54]} Nxc8 {[%clk 00:37:55]} {[%emt 00:01:51]} 24. g3 {[%clk 00:46:20]}
{[%emt 00:02:09]} Nd6 {[%clk 00:35:55]} {[%emt 00:02:31]} 25. b3 {[%clk
00:46:04]} {[%emt 00:00:46]} Qb6 {[%clk 00:33:09]} {[%emt 00:03:16]} 26. Qc3
{[%clk 00:43:52]} {[%emt 00:02:42]} Kh7 {[%clk 00:32:53]} {[%emt 00:00:45]} 27.
a4 {[%clk 00:43:28]} {[%emt 00:00:55]} Ne4 {[%clk 00:31:33]} {[%emt 00:01:50]}
28. Qd3 {[%clk 00:42:20]} {[%emt 00:01:38]} Qb4 {[%clk 00:31:48]} {[%emt
00:00:14]} 29. g4 {[%clk 00:38:29]} {[%emt 00:04:26]} hxg4 {[%clk 00:27:52]}
{[%emt 00:04:22]} 30. Bxg4 {[%clk 00:38:36]} {[%emt 00:00:22]} Nc5 {[%clk
00:27:50]} {[%emt 00:00:33]} 31. dxc5 {[%clk 00:38:22]} {[%emt 00:00:44]} Qxg4+
{[%clk 00:28:18]} {[%emt 00:00:02]} 32. Kf1 {[%clk 00:36:48]} {[%emt 00:02:04]}
Qf3 {[%clk 00:28:00]} {[%emt 00:00:48]} 33. Qd2 {[%clk 00:34:08]} {[%emt
00:03:10]} e5 {[%clk 00:21:04]} {[%emt 00:07:26]} 34. Qc2 {[%clk 00:23:25]}
{[%emt 00:11:12]} d4 {[%clk 00:21:13]} {[%emt 00:00:22]} 35. c6 {[%clk
00:23:54]} {[%emt 00:00:01]} e4 {[%clk 00:20:35]} {[%emt 00:01:08]} 36. Bxd4
{[%clk 00:18:38]} {[%emt 00:05:45]} Bxd4 {[%clk 00:19:05]} {[%emt 00:02:00]} 37.
c7 {[%clk 00:18:29]} {[%emt 00:00:40]} e3 {[%clk 00:19:33]} {[%emt 00:00:02]}
0-1

[Event "NJSK 2018 Jeugd B"]
[Site "Assen, Netherlands"]
[Date "2018.05.04"]
[Round "6.7"]
[White "Cchung, Chi Yun"]
[Black "Bruggink, Tycho"]
[Result "1/2-1/2"]
[TimeControl "40/90m+30m+30sec/move"]
[WhiteElo "1783"]
[BlackElo "1899"]

1. e4 {[%clk 01:30:57]} {[%emt 00:00:02]} c5 {[%clk 01:30:58]} {[%emt
00:00:03]} 2. Nf3 {[%clk 01:31:23]} {[%emt 00:00:04]} d6 {[%clk 01:31:26]}
{[%emt 00:00:03]} 3. d4 {[%clk 01:31:48]} {[%emt 00:00:04]} cxd4 {[%clk
01:31:54]} {[%emt 00:00:02]} 4. Nxd4 {[%clk 01:32:12]} {[%emt 00:00:05]} Nf6
{[%clk 01:32:22]} {[%emt 00:00:03]} 5. Nc3 {[%clk 01:32:35]} {[%emt 00:00:07]}
a6 {[%clk 01:32:51]} {[%emt 00:00:02]} 6. Bg5 {[%clk 01:33:00]} {[%emt
00:00:05]} Qc7 {[%clk 01:31:02]} {[%emt 00:02:19]} 7. Bxf6 {[%clk 01:25:54]}
{[%emt 00:07:35]} gxf6 {[%clk 01:31:27]} {[%emt 00:00:05]} 8. Nd5 {[%clk
01:26:16]} {[%emt 00:00:08]} Qd8 {[%clk 01:31:00]} {[%emt 00:00:58]} 9. Qf3
{[%clk 01:26:31]} {[%emt 00:00:13]} Nc6 {[%clk 01:25:30]} {[%emt 00:06:02]} 10.
O-O-O {[%clk 01:24:33]} {[%emt 00:02:27]} Bd7 {[%clk 01:16:12]} {[%emt
00:09:48]} 11. Bc4 {[%clk 01:23:58]} {[%emt 00:01:05]} Ne5 {[%clk 01:16:14]}
{[%emt 00:00:29]} 12. Qb3 {[%clk 01:21:54]} {[%emt 00:02:33]} Nxc4 {[%clk
01:13:03]} {[%emt 00:03:42]} 13. Qxc4 {[%clk 01:22:17]} {[%emt 00:00:06]} Rc8
{[%clk 01:13:32]} {[%emt 00:00:02]} 14. Qb3 {[%clk 01:20:38]} {[%emt 00:02:08]}
b5 {[%clk 01:13:55]} {[%emt 00:00:07]} 15. Rd3 {[%clk 01:18:50]} {[%emt
00:02:18]} e6 {[%clk 01:13:47]} {[%emt 00:00:39]} 16. Nc3 {[%clk 01:14:01]}
{[%emt 00:05:18]} Qb6 {[%clk 01:12:45]} {[%emt 00:01:33]} 17. a3 {[%clk
01:04:59]} {[%emt 00:09:31]} Rc4 {[%clk 01:06:31]} {[%emt 00:06:44]} 18. Rhd1
{[%clk 01:04:06]} {[%emt 00:01:23]} Rg8 {[%clk 01:03:35]} {[%emt 00:03:26]} 19.
g3 {[%clk 01:03:56]} {[%emt 00:00:39]} Rg5 {[%clk 01:03:49]} {[%emt 00:00:16]}
20. f4 {[%clk 00:59:06]} {[%emt 00:05:20]} Rgc5 {[%clk 01:04:14]} {[%emt
00:00:06]} 21. Nf3 {[%clk 00:56:03]} {[%emt 00:03:32]} Rc8 {[%clk 01:02:50]}
{[%emt 00:01:55]} 22. Rd4 {[%clk 00:45:54]} {[%emt 00:10:37]} Qa5 {[%clk
00:59:17]} {[%emt 00:04:05]} 23. R4d3 {[%clk 00:38:49]} {[%emt 00:07:35]} b4
{[%clk 00:55:43]} {[%emt 00:04:04]} 24. Nd2 {[%clk 00:35:26]} {[%emt 00:03:52]}
R4c7 {[%clk 00:31:16]} {[%emt 00:24:58]} 25. Qxb4 {[%clk 00:30:04]} {[%emt
00:05:53]} 1/2-1/2

[Event "NJSK 2018 Jeugd B"]
[Site "Assen, Netherlands"]
[Date "2018.05.04"]
[Round "6.8"]
[White "Noordenbos, Daan"]
[Black "Ypma, Jord"]
[Result "1/2-1/2"]
[TimeControl "40/90m+30m+30sec/move"]
[WhiteElo "1763"]
[BlackElo "1737"]

1. e4 {[%clk 01:30:58]} {[%emt 00:00:01]} b6 {[%clk 01:30:29]} {[%emt
00:00:32]} 2. d4 {[%clk 01:31:03]} {[%emt 00:00:25]} Bb7 {[%clk 01:30:29]}
{[%emt 00:00:30]} 3. Bd3 {[%clk 01:30:08]} {[%emt 00:01:23]} e6 {[%clk
01:30:29]} {[%emt 00:00:32]} 4. Nf3 {[%clk 01:25:45]} {[%emt 00:04:52]} Nf6
{[%clk 01:29:41]} {[%emt 00:01:19]} 5. Qe2 {[%clk 01:24:51]} {[%emt 00:01:21]}
d5 {[%clk 01:26:55]} {[%emt 00:03:18]} 6. e5 {[%clk 01:23:44]} {[%emt
00:01:38]} Ne4 {[%clk 01:24:48]} {[%emt 00:02:38]} 7. Nbd2 {[%clk 01:23:33]}
{[%emt 00:00:40]} Nxd2 {[%clk 01:24:24]} {[%emt 00:00:54]} 8. Bxd2 {[%clk
01:23:40]} {[%emt 00:00:22]} Be7 {[%clk 01:24:25]} {[%emt 00:00:30]} 9. c3
{[%clk 01:17:26]} {[%emt 00:06:44]} c5 {[%clk 01:23:48]} {[%emt 00:01:06]} 10.
a3 {[%clk 01:11:25]} {[%emt 00:06:32]} Nc6 {[%clk 01:22:36]} {[%emt 00:01:42]}
11. b4 {[%clk 01:10:28]} {[%emt 00:01:27]} a5 {[%clk 01:14:12]} {[%emt
00:08:54]} 12. b5 {[%clk 01:04:40]} {[%emt 00:06:18]} Nb8 {[%clk 01:14:07]}
{[%emt 00:00:35]} 13. a4 {[%clk 01:04:34]} {[%emt 00:00:37]} Nd7 {[%clk
01:14:22]} {[%emt 00:00:14]} 14. O-O {[%clk 01:04:04]} {[%emt 00:00:59]} Nf8
{[%clk 01:11:46]} {[%emt 00:03:07]} 15. Ne1 {[%clk 00:53:46]} {[%emt 00:10:47]}
f5 {[%clk 01:07:42]} {[%emt 00:04:35]} 16. exf6 {[%clk 00:53:39]} {[%emt
00:00:37]} Bxf6 {[%clk 01:07:49]} {[%emt 00:00:23]} 17. Nc2 {[%clk 00:53:32]}
{[%emt 00:00:37]} Qe7 {[%clk 01:06:12]} {[%emt 00:02:07]} 18. Qg4 {[%clk
00:52:56]} {[%emt 00:01:06]} c4 {[%clk 01:04:50]} {[%emt 00:01:52]} 19. Be2
{[%clk 00:52:49]} {[%emt 00:00:37]} Ng6 {[%clk 01:03:29]} {[%emt 00:01:50]} 20.
f4 {[%clk 00:51:38]} {[%emt 00:01:41]} O-O {[%clk 01:02:47]} {[%emt 00:01:13]}
21. Bc1 {[%clk 00:47:16]} {[%emt 00:04:51]} Qf7 {[%clk 01:02:19]} {[%emt
00:00:59]} 22. Ne1 {[%clk 00:43:54]} {[%emt 00:03:52]} Bc8 {[%clk 00:55:27]}
{[%emt 00:07:22]} 23. Qh5 {[%clk 00:42:44]} {[%emt 00:01:40]} Bd7 {[%clk
00:52:06]} {[%emt 00:03:51]} 24. Nf3 {[%clk 00:41:24]} {[%emt 00:01:49]} Be8
{[%clk 00:48:53]} {[%emt 00:03:44]} 25. Qh3 {[%clk 00:37:18]} {[%emt 00:04:36]}
Be7 {[%clk 00:41:41]} {[%emt 00:07:41]} 26. g3 {[%clk 00:35:04]} {[%emt
00:02:45]} Qf5 {[%clk 00:38:35]} {[%emt 00:03:35]} 27. Qxf5 {[%clk 00:34:06]}
{[%emt 00:01:30]} exf5 {[%clk 00:38:29]} {[%emt 00:00:35]} 28. Ba3 {[%clk
00:33:43]} {[%emt 00:00:53]} Bxa3 {[%clk 00:38:21]} {[%emt 00:00:38]} 29. Rxa3
{[%clk 00:34:12]} {[%emt 00:00:01]} Bf7 {[%clk 00:38:03]} {[%emt 00:00:47]} 30.
Rd1 {[%clk 00:33:05]} {[%emt 00:01:36]} Rfe8 {[%clk 00:36:22]} {[%emt
00:02:12]} 31. Ne5 {[%clk 00:33:09]} {[%emt 00:00:27]} Rad8 {[%clk 00:30:58]}
{[%emt 00:05:52]} 32. Kf2 {[%clk 00:30:21]} {[%emt 00:03:18]} Ne7 {[%clk
00:29:02]} {[%emt 00:02:25]} 33. Ra2 {[%clk 00:27:45]} {[%emt 00:03:08]} Kf8
{[%clk 00:27:53]} {[%emt 00:01:39]} 34. Ke3 {[%clk 00:27:42]} {[%emt 00:00:33]}
Ng8 {[%clk 00:27:25]} {[%emt 00:00:58]} 35. Bf3 {[%clk 00:27:48]} {[%emt
00:00:24]} Nf6 {[%clk 00:27:11]} {[%emt 00:00:44]} 36. Rc2 {[%clk 00:18:57]}
{[%emt 00:09:19]} Bh5 {[%clk 00:23:47]} {[%emt 00:03:55]} 37. Bxh5 {[%clk
00:19:19]} {[%emt 00:00:08]} 1/2-1/2

[Event "NJSK 2018 Jeugd B"]
[Site "Assen, Netherlands"]
[Date "2018.05.05"]
[Round "7.1"]
[White "Grutter, Tim"]
[Black "De Boer, Eelke"]
[Result "1/2-1/2"]
[TimeControl "40/90m+30m+30sec/move"]
[WhiteElo "1974"]
[BlackElo "2318"]

1. e4 {[%clk 01:30:58]} {[%emt 00:00:09]} c5 {[%clk 01:30:55]} {[%emt
00:00:28]} 2. Nf3 {[%clk 01:31:23]} {[%emt 00:00:20]} d6 {[%clk 01:31:20]}
{[%emt 00:00:08]} 3. Bb5+ {[%clk 01:31:41]} {[%emt 00:00:20]} Nd7 {[%clk
01:31:10]} {[%emt 00:00:52]} 4. d4 {[%clk 01:32:02]} {[%emt 00:00:09]} Ngf6
{[%clk 01:31:34]} {[%emt 00:00:06]} 5. Nc3 {[%clk 01:32:20]} {[%emt 00:00:15]}
cxd4 {[%clk 01:31:54]} {[%emt 00:00:12]} 6. Qxd4 {[%clk 01:32:44]} {[%emt
00:00:08]} e5 {[%clk 01:31:40]} {[%emt 00:00:47]} 7. Qd3 {[%clk 01:32:57]}
{[%emt 00:00:19]} h6 {[%clk 01:32:04]} {[%emt 00:00:08]} 8. O-O {[%clk
01:33:07]} {[%emt 00:00:24]} a6 {[%clk 01:30:33]} {[%emt 00:02:07]} 9. Bxd7+
{[%clk 01:33:22]} {[%emt 00:00:15]} Bxd7 {[%clk 01:30:27]} {[%emt 00:00:25]} 10.
Nd2 {[%clk 01:33:25]} {[%emt 00:00:25]} Rc8 {[%clk 01:22:18]} {[%emt 00:07:18]}
11. Nc4 {[%clk 01:32:25]} {[%emt 00:01:30]} Qc7 {[%clk 01:21:43]} {[%emt
00:01:06]} 12. Ne3 {[%clk 01:32:39]} {[%emt 00:00:16]} Be6 {[%clk 01:21:15]}
{[%emt 00:00:57]} 13. Bd2 {[%clk 01:31:54]} {[%emt 00:01:15]} Be7 {[%clk
01:19:46]} {[%emt 00:01:59]} 14. Rac1 {[%clk 01:32:05]} {[%emt 00:00:20]} Qc5
{[%clk 01:13:53]} {[%emt 00:06:22]} 15. Ncd5 {[%clk 01:29:53]} {[%emt
00:02:42]} Nxd5 {[%clk 01:07:12]} {[%emt 00:07:11]} 16. Nxd5 {[%clk 01:29:42]}
{[%emt 00:00:41]} Bxd5 {[%clk 01:07:17]} {[%emt 00:00:25]} 17. Qxd5 {[%clk
01:28:55]} {[%emt 00:01:17]} Qxd5 {[%clk 00:53:47]} {[%emt 00:14:00]} 18. exd5
{[%clk 01:27:18]} {[%emt 00:02:07]} Kd7 {[%clk 00:52:55]} {[%emt 00:01:22]} 19.
f4 {[%clk 01:23:02]} {[%emt 00:04:46]} exf4 {[%clk 00:48:56]} {[%emt 00:04:29]}
20. Rxf4 {[%clk 01:21:06]} {[%emt 00:02:26]} Bf6 {[%clk 00:47:38]} {[%emt
00:01:49]} 21. b3 {[%clk 01:18:38]} {[%emt 00:02:58]} Rhe8 {[%clk 00:45:51]}
{[%emt 00:02:16]} 22. c4 {[%clk 01:16:04]} {[%emt 00:03:06]} Re2 {[%clk
00:39:16]} {[%emt 00:07:03]} 23. Bc3 {[%clk 01:14:02]} {[%emt 00:02:32]} Bxc3
{[%clk 00:39:34]} {[%emt 00:00:12]} 24. Rxc3 {[%clk 01:14:28]} {[%emt
00:00:05]} f6 {[%clk 00:39:49]} {[%emt 00:00:14]} 25. Rf2 {[%clk 01:08:08]}
{[%emt 00:06:51]} Rce8 {[%clk 00:38:48]} {[%emt 00:01:32]} 26. Rc2 {[%clk
01:07:32]} {[%emt 00:01:04]} Re1+ {[%clk 00:32:45]} {[%emt 00:06:34]} 27. Rf1
{[%clk 01:07:53]} {[%emt 00:00:09]} R8e2 {[%clk 00:32:57]} {[%emt 00:00:17]} 28.
Rxe2 {[%clk 01:07:58]} {[%emt 00:00:28]} Rxe2 {[%clk 00:33:19]} {[%emt
00:00:05]} 29. Rf2 {[%clk 01:08:21]} {[%emt 00:00:09]} Re1+ {[%clk 00:29:38]}
{[%emt 00:04:09]} 30. Rf1 {[%clk 01:08:45]} {[%emt 00:00:06]} Re2 {[%clk
00:30:02]} {[%emt 00:00:06]} 31. Rf2 {[%clk 01:07:39]} {[%emt 00:01:36]} Re5
{[%clk 00:30:25]} {[%emt 00:00:08]} 32. Rf3 {[%clk 01:04:51]} {[%emt 00:03:17]}
Ke7 {[%clk 00:25:17]} {[%emt 00:05:37]} 33. Kf2 {[%clk 01:03:29]} {[%emt
00:01:52]} f5 {[%clk 00:24:02]} {[%emt 00:01:45]} 34. Rd3 {[%clk 00:59:51]}
{[%emt 00:04:08]} Kf6 {[%clk 00:21:18]} {[%emt 00:03:15]} 35. g3 {[%clk
00:47:21]} {[%emt 00:13:03]} Re4 {[%clk 00:20:12]} {[%emt 00:01:34]} 36. a3
{[%clk 00:46:24]} {[%emt 00:01:27]} b5 {[%clk 00:16:53]} {[%emt 00:03:48]} 37.
cxb5 {[%clk 00:42:11]} {[%emt 00:04:45]} axb5 {[%clk 00:17:16]} {[%emt
00:00:06]} 38. Rd1 {[%clk 00:32:46]} {[%emt 00:09:55]} Re8 {[%clk 00:12:28]}
{[%emt 00:05:16]} 39. a4 {[%clk 00:29:11]} {[%emt 00:04:07]} bxa4 {[%clk
00:09:38]} {[%emt 00:03:23]} 40. bxa4 {[%clk 00:29:34]} {[%emt 00:00:03]} Ra8
{[%clk 00:10:02]} {[%emt 00:00:05]} 41. Re1 {[%clk 00:29:43]} {[%emt 00:00:21]}
Rxa4 {[%clk 00:02:41]} {[%emt 00:07:55]} 42. Re6+ {[%clk 00:29:56]} {[%emt
00:00:14]} Kf7 {[%clk 00:29:34]} {[%emt 00:03:37]} 43. Rxd6 {[%clk 00:59:48]}
{[%emt 00:00:38]} Ra2+ {[%clk 00:29:59]} {[%emt 00:00:05]} 44. Kg1 {[%clk
00:59:20]} {[%emt 00:00:58]} Rd2 {[%clk 00:26:04]} {[%emt 00:04:25]} 45. h4
{[%clk 00:58:09]} {[%emt 00:01:40]} Ke7 {[%clk 00:25:01]} {[%emt 00:01:33]} 46.
Rg6 {[%clk 00:58:14]} {[%emt 00:00:28]} Kf7 {[%clk 00:24:49]} {[%emt 00:00:40]}
47. Rd6 {[%clk 00:58:32]} {[%emt 00:00:12]} Ke7 {[%clk 00:24:41]} {[%emt
00:00:07]} 1/2-1/2